fUST/lending_fUST_20250624
["ID","MTS","AMOUNT","RATE_DAILY","PERIOD"]
[367262407,1750721445323,-151.0,0.00022,7]
[367262408,1750721445332,-223.618731,0.00022,7]
[367262409,1750721445342,-151.0,0.00022,7]
[367262410,1750721445351,-151.0,0.00022,7]
[367262411,1750721445360,-152.096639,0.00022,7]
[367262412,1750721445370,-175.719527,0.00022,7]
[367262413,1750721445379,-187.0,0.00022,2]
[367262414,1750721445390,-151.0,0.00022,7]
[367262415,1750721445399,-151.0,0.00022,7]
[367262416,1750721445409,-151.0,0.00022,7]
[367262417,1750721445418,-259.36973,0.00022,7]
[367262418,1750721445428,-151.0,0.00022,2]
[367262419,1750721445437,-151.0,0.00022,2]
[367262420,1750721445451,-151.0,0.00022,7]
[367262421,1750721445460,-151.0,0.00022,2]
[367262422,1750721445470,-151.0,0.00022,2]
[367262423,1750721445479,-151.0,0.00022,7]
[367262424,1750721445490,-151.0,0.00022,7]
[367262425,1750721445499,-151.0,0.00022,7]
[367262426,1750721445509,-151.0,0.00022,7]
[367262427,1750721445521,-151.0,0.00022,7]
[367262428,1750721445530,-212.693452,0.00022,7]
[367262429,1750721445539,-151.0,0.00022,7]
[367262430,1750721445548,-846.53928378,0.00022,7]
[367262431,1750721445559,-151.0,0.00022,7]
[367262432,1750721445568,-151.0,0.00022,7]
[367262433,1750721445577,-233.103182,0.00022,7]
[367262434,1750721445587,-233.103182,0.00022,7]
[367262435,1750721445596,-155.739789,0.00022,7]
[367262436,1750721445605,-12553.69357174,0.00022,7]
[367262437,1750721445615,-213.63163053,0.00022,7]
[367262438,1750721445624,-151.0,0.00022,7]
[367262439,1750721445633,-151.0,0.00022,7]
[367262440,1750721445643,-151.0,0.00022,7]
[367262441,1750721445653,-151.0,0.00022,7]
[367262442,1750721445662,-151.0,0.00022,7]
[367262443,1750721445671,-151.0,0.00022,7]
[367262444,1750721445681,-151.0,0.00022,7]
[367262445,1750721445690,-1310.93,0.00022065,5]
[367262447,1750721445700,-460.0,0.00022109,2]
[367262448,1750721445709,-543.31,0.00022109,2]
[367262449,1750721445719,-223.0315306,0.00022109,2]
[367262450,1750721445728,-460.0,0.0002211,2]
[367262451,1750721445738,-1768.09,0.0002211,2]
[367262452,1750721445748,-358.4327498,0.0002211,2]
[367262453,1750721445757,-1092.03,0.0002211,2]
[367262454,1750721445767,-460.0,0.0002211,2]
[367262455,1750721445776,-757.23,0.0002211,2]
[367262456,1750721445786,-460.0,0.0002211,2]
[367262457,1750721445796,-460.0,0.0002211,2]
[367262458,1750721445806,-643.19,0.0002211,2]
[367262459,1750721445815,-460.0,0.0002211,2]
[367262460,1750721445826,-1146.64,0.0002211,2]
[367262461,1750721445835,-460.0,0.0002211,2]
[367262462,1750721445845,-524.83,0.0002211,2]
[367262463,1750721445854,-460.0,0.0002211,2]
[367262464,1750721445864,-667.95,0.0002211,2]
[367262465,1750721445873,-500.0,0.00022123,2]
[367262466,1750721445882,-500.0,0.00022123,2]
[367262467,1750721445891,-232.08641367,0.00022164,3]
[367262468,1750721445901,-1310.93,0.00022165,4]
[367262469,1750721445911,-340.761767,0.00022187,2]
[367262470,1750721445920,-1749.0,0.0002225,3]
[367262471,1750721445930,-1749.0,0.0002225,3]
[367262472,1750721445941,-1749.0,0.0002225,3]
[367262473,1750721445951,-1657.8328387,0.0002225,3]
[367262474,1750721445960,-489.12123607,0.0002225,3]
[367262475,1750721445970,-226.645457,0.0002225,7]
[367262476,1750721445979,-151.0,0.0002225,7]
[367262478,1750721445988,-160.0,0.0002225,3]
[367262479,1750721445997,-151.0,0.0002225,2]
[367262480,1750721446006,-276.0535,0.0002225,2]
[367262481,1750721446016,-151.0,0.0002225,7]
[367262482,1750721446025,-151.0,0.0002225,7]
[367262483,1750721446034,-151.0,0.0002225,7]
[367262484,1750721446045,-151.0,0.0002225,7]
[367262485,1750721446054,-846.53928378,0.0002225,3]
[367262486,1750721446063,-151.0,0.0002225,7]
[367262487,1750721446072,-151.0,0.0002225,7]
[367262488,1750721446082,-233.103182,0.0002225,7]
[367262489,1750721446091,-233.103182,0.0002225,7]
[367262490,1750721446100,-12553.69357174,0.0002225,3]
[367262491,1750721446110,-213.63163053,0.0002225,3]
[367262492,1750721446122,-151.0,0.0002225,7]
[367262493,1750721446137,-151.0,0.0002225,7]
[367262494,1750721446146,-151.0,0.0002225,7]
[367262495,1750721446156,-1310.93,0.00022265,5]
[367262496,1750721446166,-319.04093371,0.00022296,2]
[367262497,1750721446175,-151.0,0.00022296,7]
[367262498,1750721446184,-151.0,0.00022296,7]
[367262499,1750721446193,-151.0,0.00022363,5]
[367262500,1750721446203,-3955.89185124,0.00022364,2]
[367262501,1750721446212,-237.688954,0.00022364,7]
[367262502,1750721446222,-151.0,0.00022364,7]
[367262503,1750721446231,-185.156438,0.00022364,7]
[367262504,1750721446240,-1310.93,0.00022365,5]
[367262505,1750721446249,-460.0,0.00022383,2]
[367262506,1750721446258,-543.31,0.00022383,2]
[367262507,1750721446267,-460.0,0.00022384,2]
[367262508,1750721446277,-156.168196,0.00022384,7]
[367262509,1750721446286,-156.168196,0.00022384,7]
[367262510,1750721446295,-151.0,0.00022384,7]
[367262511,1750721446305,-151.0,0.00022384,7]
[367262512,1750721446314,-151.0,0.00022384,7]
[367262513,1750721446323,-151.0,0.00022384,7]
[367262514,1750721446331,-254.47348,0.00022384,7]
[367262515,1750721446341,-151.0,0.00022384,7]
[367262517,1750721446352,-172.613825,0.00022384,7]
[367262519,1750721446362,-151.0,0.00022384,7]
[367262520,1750721446371,-151.0,0.00022384,7]
[367262521,1750721446380,-1768.09,0.00022384,2]
[367262522,1750721446390,-1092.03,0.00022384,2]
[367262523,1750721446399,-299.48,0.00022384,2]
[367262524,1750721446410,-757.23,0.00022384,2]
[367262525,1750721446419,-460.0,0.00022384,2]
[367262526,1750721446431,-460.0,0.00022384,2]
[367262527,1750721446442,-643.19,0.00022384,2]
[367262528,1750721446454,-460.0,0.00022384,2]
[367262529,1750721446463,-1146.64,0.00022384,2]
[367262530,1750721446472,-460.0,0.00022384,2]
[367262531,1750721446481,-524.83,0.00022384,2]
[367262532,1750721446490,-460.0,0.00022384,2]
[367262533,1750721446500,-667.95,0.00022384,2]
[367262534,1750721446509,-500.0,0.00022386,2]
[367262535,1750721446517,-1086.01766069,0.00022386,2]
[367262536,1750721446527,-1000.0,0.00022386,2]
[367262537,1750721446536,-1000.0,0.00022386,2]
[367262538,1750721446545,-1000.0,0.00022386,2]
[367262539,1750721446554,-1200.0,0.00022386,2]
[367262540,1750721446667,-1000.0,0.00022386,2]
[367262541,1750721446676,-1310.93,0.00022465,7]
[367262542,1750721446686,-500.0,0.00022465,2]
[367262543,1750721446695,-447.85899425,0.00022473,2]
[367262544,1750721446705,-500.0,0.00022473,2]
[367262546,1750721446715,-170.23353277,0.00022473,2]
[367262547,1750721446726,-500.0,0.00022473,2]
[367262548,1750721446735,-1732446.41157855,0.000225,2]
[367262550,1750721648752,200.0,0.00024,120]
[367262551,1750721696070,164.0,0.00017945,3]
[367262552,1750722017186,180.0,0.00017918,3]
[367262553,1750722441142,-327.658359,0.00019178,2]
[367262554,1750722441667,-219.86337914,0.00019201,2]
[367262555,1750722441689,-161.46,0.00019292,2]
[367262556,1750722441710,-300.0,0.00019299,2]
[367262557,1750722441731,-300.0,0.00019299,2]
[367262558,1750722441751,-295.0,0.000193,2]
[367262559,1750722441774,-300.0,0.000193,2]
[367262560,1750722441796,-1200.0,0.000193,2]
[367262561,1750722441817,-165.0,0.000193,2]
[367262562,1750722441839,-460.0,0.000193,2]
[367262563,1750722441861,-566.7247954,0.000193,2]
[367262564,1750722441881,-466.34398814,0.000193,2]
[367262565,1750722441901,-460.0,0.000193,2]
[367262566,1750722441923,-373.79056901,0.000193,2]
[367262567,1750722448074,-86.20943099,0.000193,2]
[367262568,1750722448095,-460.0,0.000193,2]
[367262569,1750722448118,-259.12992828,0.000193,2]
[367262570,1750722448139,-472.34325712,0.000193,2]
[367262571,1750722448159,-59.94543208,0.000193,2]
[367262573,1750722570153,128.39704381,0.000189,2]
[367262574,1750722570180,21.60295619,0.000189,2]
[367262600,1750722632327,-460.48819034,0.000193,2]
[367262635,1750722632839,-460.0,0.000193,2]
[367262636,1750722632849,-460.0,0.000193,2]
[367262637,1750722632860,-300.0,0.000193,2]
[367262638,1750722632870,-412.0,0.000193,2]
[367262639,1750722632879,-392.03987166,0.000193,2]
[367262640,1750722632889,-460.0,0.000193,2]
[367262641,1750722632899,-460.0,0.000193,2]
[367262642,1750722632909,-440.0,0.00019301,2]
[367262643,1750722632919,-460.0,0.00019301,2]
[367262644,1750722632928,-460.0,0.00019301,2]
[367262645,1750722632938,-460.0,0.00019301,2]
[367262646,1750722632947,-273.59,0.00019301,2]
[367262647,1750722632957,-460.0,0.00019301,2]
[367262648,1750722632966,-460.0,0.00019301,2]
[367262649,1750722632975,-460.0,0.00019301,2]
[367262650,1750722632985,-506.77,0.00019301,2]
[367262651,1750722632994,-460.0,0.00019301,2]
[367262652,1750722633003,-460.0,0.00019301,2]
[367262653,1750722633013,-169.52193716,0.00019301,2]
[367262654,1750722633022,-460.0,0.00019301,2]
[367262655,1750722633032,-460.0,0.00019301,2]
[367262656,1750722633208,-468.54,0.00019301,2]
[367262657,1750722633218,-460.0,0.00019301,2]
[367262658,1750722633228,-460.0,0.00019301,2]
[367262659,1750722633238,-460.0,0.00019301,2]
[367262660,1750722633248,-460.0,0.00019301,2]
[367262661,1750722633257,-460.0,0.00019301,2]
[367262662,1750722633266,-460.0,0.00019301,2]
[367262663,1750722633275,-460.0,0.00019301,2]
[367262664,1750722633285,-460.0,0.00019301,2]
[367262665,1750722633294,-460.0,0.00019301,2]
[367262666,1750722633304,-460.0,0.00019301,2]
[367262667,1750722633313,-475.9,0.00019301,2]
[367262668,1750722633322,-460.0,0.00019301,2]
[367262669,1750722633331,-460.0,0.00019301,2]
[367262670,1750722633341,-440.0,0.00019301,2]
[367262671,1750722633350,-460.0,0.00019301,2]
[367262672,1750722633359,-250.29023511,0.00019301,2]
[367262673,1750722633371,-209.70976489,0.00019301,2]
[367262674,1750722633381,-460.0,0.00019301,2]
[367262675,1750722633390,-582.78,0.00019301,2]
[367262676,1750722633400,-522.02,0.00019301,2]
[367262677,1750722633409,-460.0,0.00019301,2]
[367262678,1750722633418,-460.0,0.00019301,2]
[367262679,1750722633428,-342.33,0.00019301,2]
[367262680,1750722633438,-460.0,0.00019301,2]
[367262681,1750722633447,-460.0,0.00019301,2]
[367262682,1750722633457,-481.99,0.00019301,2]
[367262683,1750722633466,-460.0,0.00019301,2]
[367262684,1750722633476,-460.0,0.00019301,2]
[367262685,1750722633485,-460.0,0.00019301,2]
[367262686,1750722633495,-460.0,0.00019301,2]
[367262687,1750722633504,-1002.59,0.00019301,2]
[367262688,1750722633514,-460.0,0.00019301,2]
[367262689,1750722633523,-460.0,0.00019301,2]
[367262690,1750722633533,-532.08,0.00019301,2]
[367262691,1750722633542,-440.0,0.00019301,2]
[367262692,1750722633552,-460.0,0.00019301,2]
[367262693,1750722633561,-440.0,0.00019301,2]
[367262694,1750722633570,-546.66,0.00019301,2]
[367262695,1750722633579,-460.0,0.00019301,2]
[367262696,1750722633589,-440.0,0.00019301,2]
[367262697,1750722633598,-460.0,0.00019301,2]
[367262698,1750722633607,-460.0,0.00019301,2]
[367262699,1750722633617,-2599.5904381,0.00019301,2]
[367262700,1750722633627,-24900.0,0.00019302,2]
[367262701,1750722633637,-358.16465109,0.00019369,2]
[367262702,1750722633646,-525.36,0.00019369,2]
[367262703,1750722633655,-460.0,0.00019369,2]
[367262704,1750722633665,-460.0,0.00019369,2]
[367262705,1750722633674,-460.0,0.00019369,2]
[367262706,1750722633684,-460.0,0.00019369,2]
[367262707,1750722633693,-516.39,0.00019369,2]
[367262708,1750722633703,-460.0,0.00019369,2]
[367262709,1750722633712,-460.0,0.00019369,2]
[367262710,1750722633721,-460.0,0.00019369,2]
[367262711,1750722633731,-460.0,0.00019369,2]
[367262712,1750722633740,-460.0,0.00019369,2]
[367262713,1750722633749,-679.57,0.00019369,2]
[367262714,1750722633759,-737.13,0.00019369,2]
[367262715,1750722633769,-491.1,0.00019369,2]
[367262716,1750722633779,-460.0,0.00019369,2]
[367262717,1750722633788,-460.0,0.00019369,2]
[367262718,1750722633798,-272.17286136,0.00019369,2]
[367262719,1750722633807,-460.0,0.00019369,2]
[367262720,1750722633822,-460.0,0.00019369,2]
[367262721,1750722633832,-25.14306419,0.00019369,2]
[367262722,1750722635936,-434.85693581,0.00019369,2]
[367262723,1750722635946,-274.21013248,0.00019369,2]
[367262724,1750722635955,-460.0,0.00019369,2]
[367262725,1750722635964,-260.44011568,0.0001937,2]
[367262726,1750722635975,-199.55988432,0.0001937,2]
[367262727,1750722635985,-460.0,0.0001937,2]
[367262728,1750722635994,-451.43174198,0.0001937,2]
[367262729,1750722636003,-426.92377603,0.0001937,2]
[367262730,1750722638008,2768.31173495,0.00018192,2]
[367262761,1750722638390,-33.07622397,0.0001937,2]
[367262763,1750722638400,-192.52779574,0.0001937,2]
[367262765,1750722638409,-207.4,0.00019371,2]
[367262767,1750722638419,-5000.0,0.00019371,2]
[367262769,1750722638428,-460.0,0.00019574,2]
[367262771,1750722638437,-460.0,0.00019574,2]
[367262773,1750722638446,-537.74953804,0.00019575,2]
[367262775,1750722638456,-460.0,0.00019575,2]
[367262777,1750722638465,-352.3327829,0.00019575,2]
[367262779,1750722638475,-460.0,0.00019575,2]
[367262782,1750722638484,-460.0,0.00019575,2]
[367262783,1750722638493,-460.0,0.00019575,2]
[367262785,1750722638503,-460.0,0.00019575,2]
[367262787,1750722638512,-460.0,0.00019575,2]
[367262789,1750722638521,-103.97815226,0.00019575,2]
[367262792,1750722638534,-356.02184774,0.00019575,2]
[367262794,1750722638544,-460.0,0.00019575,2]
[367262796,1750722638554,-460.0,0.00019575,2]
[367262798,1750722638564,-460.0,0.00019575,2]
[367262800,1750722638573,-1002.59,0.00019575,2]
[367262802,1750722638583,-460.0,0.00019575,2]
[367262805,1750722638592,-460.0,0.00019575,2]
[367262808,1750722638602,-460.0,0.00019575,2]
[367262809,1750722638612,-460.0,0.00019575,2]
[367262811,1750722638621,-460.0,0.00019575,2]
[367262813,1750722638630,-317.98267394,0.00019575,2]
[367262815,1750722638646,-142.01732606,0.00019575,2]
[367262817,1750722638656,-191.55,0.00019643,2]
[367262819,1750722638665,-310.76443048,0.00019643,2]
[367262821,1750722638676,-149.23556952,0.00019643,2]
[367262822,1750722638685,-588.25,0.00019643,2]
[367262824,1750722638695,-28.53006198,0.00019643,2]
[367263695,1750722648115,172.0,0.00017918,3]
[367265796,1750722669126,150.0,0.00020351,30]
[367270447,1750722742342,150.0,0.00021291,30]
[367270449,1750722795461,1986.072052,0.00024,30]
[367270450,1750722851213,550.811764,0.00013699,2]
[367270453,1750722962572,160.0,0.0001789,3]
[367270454,1750722978827,16327.27354486,0.00018339,2]
[367270455,1750722978853,8572.72645514,0.00018339,2]
[367270456,1750723217990,-175.29521816,0.00019178,2]
[367270457,1750723236771,175.00368416,0.00019016,2]
[367270461,1750723266667,303.4856341,0.00018296,2]
[367270462,1750723278522,181.0,0.0001789,3]
[367270463,1750723294877,2977.6,0.00019178,120]
[367270464,1750723398376,-268.381,0.00019178,2]
[367270468,1750723591682,156.0,0.0001789,3]
[367270469,1750723621691,359.4703468,0.00018293,2]
[367270470,1750723640114,-71.98625084,0.00019178,2]
[367270471,1750723640135,-175.29521816,0.0001928,2]
[367270472,1750723640156,-300.0,0.00019288,2]
[367270473,1750723640178,-300.0,0.00019289,2]
[367270474,1750723640202,-1047.70060011,0.00019289,2]
[367270475,1750723645098,-152.29939989,0.00019289,2]
[367270476,1750723645118,-300.0,0.00019289,2]
[367270477,1750723645138,-300.0,0.00019289,2]
[367270478,1750723645162,-300.0,0.00019289,2]
[367270479,1750723645184,-69.44846875,0.0001929,2]
[367270521,1750723838568,-296.08118237,0.00019196,2]
[367270522,1750723838578,-1200.0,0.00019289,2]
[367270523,1750723838588,-300.0,0.00019289,2]
[367270524,1750723838597,-300.0,0.00019289,2]
[367270525,1750723838607,-9072.61012654,0.0001929,2]
[367270526,1750723838619,-5113.02886269,0.0001929,2]
[367270527,1750723838682,-241.65636797,0.0001929,2]
[367270529,1750723838691,-270.93634137,0.0001929,3]
[367270537,1750723838867,-81.02365863,0.0001929,3]
[367270539,1750723838877,-597.73,0.00019295,2]
[367270541,1750723838886,-460.0,0.00019295,2]
[367270543,1750723838896,-460.0,0.00019295,2]
[367270545,1750723838905,-460.0,0.00019295,2]
[367270547,1750723838914,-243.25786699,0.00019295,2]
[367270550,1750723838926,-156.74213301,0.00019295,2]
[367270552,1750723838936,-1738.13,0.00019295,2]
[367270554,1750723838945,-372.19870005,0.00019295,2]
[367270556,1750723838960,-87.80129995,0.00019295,2]
[367270558,1750723838970,-460.0,0.00019295,2]
[367270560,1750723838979,-460.0,0.00019295,2]
[367270562,1750723838988,-460.0,0.00019296,2]
[367270564,1750723838997,-396.85594251,0.00019296,2]
[367270565,1750723839006,-460.0,0.00019296,2]
[367270566,1750723839015,-399.41,0.00019296,2]
[367270567,1750723839025,-460.0,0.00019296,2]
[367270568,1750723839034,-460.0,0.00019296,2]
[367270569,1750723839043,-460.0,0.00019296,2]
[367270570,1750723839054,-460.0,0.00019296,2]
[367270571,1750723839063,-1947.57,0.00019296,2]
[367270572,1750723839072,-2262.43,0.00019296,2]
[367270573,1750723839082,-506.05,0.00019296,2]
[367270574,1750723839091,-1275.82,0.00019296,2]
[367270575,1750723839100,-460.0,0.00019296,2]
[367270576,1750723839109,-1757.27,0.00019296,2]
[367270577,1750723839119,-1401.59,0.00019296,2]
[367270578,1750723839129,-460.0,0.00019296,2]
[367270579,1750723839139,-453.80674209,0.00019296,2]
[367270580,1750723839149,-755.91,0.00019296,2]
[367270581,1750723839158,-504.92,0.00019296,2]
[367270582,1750723839167,-748.41,0.00019296,2]
[367270583,1750723839176,-2742.61,0.00019296,2]
[367270584,1750723839186,-580.87,0.00019296,2]
[367270585,1750723839196,-460.0,0.00019296,2]
[367270586,1750723839205,-460.0,0.00019296,2]
[367270587,1750723839215,-460.0,0.00019296,2]
[367270588,1750723839224,-461.38806245,0.00019297,2]
[367270589,1750723839233,-460.0,0.00019297,2]
[367270590,1750723839243,-460.0,0.00019297,2]
[367270591,1750723839255,-460.0,0.00019297,2]
[367270592,1750723839268,-307.0423032,0.00019297,2]
[367270593,1750723839278,-460.0,0.00019297,2]
[367270594,1750723839287,-460.0,0.00019297,2]
[367270595,1750723839296,-521.35,0.00019297,2]
[367270596,1750723839306,-209.47228383,0.00019297,2]
[367270597,1750723839315,-460.0,0.00019297,2]
[367270598,1750723839324,-460.0,0.00019297,2]
[367270600,1750723839334,-460.0,0.00019297,2]
[367270602,1750723839343,-460.0,0.00019297,2]
[367270603,1750723839353,-460.0,0.00019297,2]
[367270604,1750723839362,-460.0,0.00019297,2]
[367270605,1750723839371,-460.0,0.00019297,2]
[367270606,1750723839381,-460.0,0.00019297,2]
[367270607,1750723839391,-460.0,0.00019297,2]
[367270608,1750723839401,-460.0,0.00019297,2]
[367270609,1750723839415,-460.0,0.00019297,2]
[367270610,1750723839426,-521.47,0.00019297,2]
[367270611,1750723839436,-460.0,0.00019297,2]
[367270612,1750723839447,-460.0,0.00019297,2]
[367270613,1750723839458,-460.0,0.00019297,2]
[367270614,1750723839467,-460.0,0.00019297,2]
[367270615,1750723839478,-460.0,0.00019297,2]
[367270616,1750723839487,-460.0,0.00019297,2]
[367270617,1750723839497,-460.0,0.00019297,2]
[367270618,1750723839508,-460.0,0.00019297,2]
[367270619,1750723839518,-460.0,0.00019297,2]
[367270620,1750723839527,-460.0,0.00019297,2]
[367270621,1750723839537,-460.0,0.00019297,2]
[367270622,1750723839547,-460.0,0.00019297,2]
[367270623,1750723839557,-460.0,0.00019297,2]
[367270624,1750723839567,-460.0,0.00019297,2]
[367270625,1750723839578,-246.77268036,0.00019297,2]
[367270626,1750723839588,-770.93,0.00019297,2]
[367270627,1750723839598,-460.0,0.00019297,2]
[367270628,1750723839608,-532.98,0.00019297,2]
[367270629,1750723839619,-545.41,0.00019297,2]
[367270630,1750723839631,-460.0,0.00019297,2]
[367270631,1750723839641,-460.0,0.00019297,2]
[367270632,1750723839651,-460.0,0.00019297,2]
[367270633,1750723839660,-460.0,0.00019297,2]
[367270634,1750723839671,-460.0,0.00019297,2]
[367270635,1750723839681,-202.46,0.00019297,2]
[367270636,1750723839691,-460.0,0.00019297,2]
[367270637,1750723839700,-460.0,0.00019297,2]
[367270638,1750723839710,-460.0,0.00019297,2]
[367270639,1750723839719,-460.0,0.00019297,2]
[367270640,1750723839729,-460.0,0.00019297,2]
[367270641,1750723839739,-460.0,0.00019297,2]
[367270642,1750723839749,-460.0,0.00019297,2]
[367270643,1750723839759,-460.0,0.00019297,2]
[367270644,1750723839769,-460.0,0.00019297,2]
[367270645,1750723839779,-460.0,0.00019297,2]
[367270646,1750723839788,-460.0,0.00019297,2]
[367270647,1750723839798,-460.0,0.00019297,2]
[367270648,1750723839808,-362.44426746,0.00019297,2]
[367270649,1750723839818,-460.0,0.00019297,2]
[367270650,1750723839827,-460.0,0.00019297,2]
[367270651,1750723839837,-540.67,0.00019297,2]
[367270652,1750723839847,-460.0,0.00019297,2]
[367270653,1750723839857,-460.0,0.00019297,2]
[367270654,1750723839868,-460.0,0.00019297,2]
[367270655,1750723839878,-460.0,0.00019297,2]
[367270656,1750723839887,-460.0,0.00019297,2]
[367270657,1750723839896,-460.0,0.00019297,2]
[367270658,1750723839906,-440.0,0.00019297,2]
[367270659,1750723839915,-460.0,0.00019297,2]
[367270660,1750723839926,-460.0,0.00019297,2]
[367270661,1750723839937,-460.0,0.00019297,2]
[367270662,1750723839947,-460.0,0.00019297,2]
[367270663,1750723839958,-545.2,0.00019297,2]
[367270664,1750723839970,-460.0,0.00019297,2]
[367270665,1750723839980,-460.0,0.00019297,2]
[367270666,1750723839989,-460.0,0.00019297,2]
[367270667,1750723839999,-460.0,0.00019297,2]
[367270668,1750723840008,-715.93,0.00019297,2]
[367270669,1750723840017,-460.0,0.00019297,2]
[367270670,1750723840027,-460.0,0.00019297,2]
[367270671,1750723840037,-695.58,0.00019297,2]
[367270672,1750723840046,-460.0,0.00019297,2]
[367270673,1750723840056,-460.0,0.00019297,2]
[367270674,1750723840065,-460.0,0.00019297,2]
[367270675,1750723840074,-525.08440143,0.00019297,2]
[367270676,1750723840084,-460.0,0.00019298,2]
[367270677,1750723840093,-460.0,0.00019298,2]
[367270678,1750723840102,-460.0,0.00019298,2]
[367270679,1750723840111,-561.93,0.00019298,2]
[367270680,1750723840121,-725.17,0.00019298,2]
[367270681,1750723840130,-460.0,0.00019298,2]
[367270682,1750723840139,-718.39,0.00019298,2]
[367270683,1750723840149,-681.74,0.00019298,2]
[367270685,1750723840160,-2326.13113397,0.00019299,2]
[367270686,1750723840170,-8373.89031274,0.00019299,2]
[367270687,1750723840179,-460.0,0.00019299,2]
[367270688,1750723840190,-460.0,0.00019299,2]
[367270690,1750723840337,-460.0,0.00019299,2]
[367270691,1750723840347,-460.0,0.00019299,2]
[367270692,1750723840357,-243.63755513,0.00019299,2]
[367270693,1750723840366,-460.0,0.00019299,2]
[367270694,1750723840376,-460.0,0.00019299,2]
[367270695,1750723840385,-460.0,0.00019299,2]
[367270696,1750723840395,-460.0,0.00019299,2]
[367270697,1750723840411,-222.23631958,0.00019299,2]
[367270698,1750723840420,-2243.65,0.00019299,2]
[367270699,1750723840429,-151.0,0.00019299,2]
[367270700,1750723840439,-151.0,0.00019299,2]
[367270701,1750723840449,-153.07406754,0.00019299,2]
[367270703,1750723840459,-151.0,0.00019299,2]
[367270704,1750723840468,-500.0,0.00019299,2]
[367270705,1750723840481,-500.0,0.00019299,2]
[367270706,1750723840490,-500.0,0.00019299,2]
[367270707,1750723840500,-500.0,0.00019299,2]
[367270708,1750723840509,-500.0,0.00019299,2]
[367270709,1750723840518,-500.0,0.00019299,2]
[367270710,1750723840527,-500.0,0.00019299,2]
[367270711,1750723840537,-500.0,0.00019299,2]
[367270712,1750723840546,-500.0,0.00019299,2]
[367270713,1750723840556,-500.0,0.00019299,2]
[367270714,1750723840565,-447.55923561,0.00019299,2]
[367270715,1750723840575,-500.0,0.00019299,2]
[367270716,1750723840584,-151.3361149,0.00019299,2]
[367270717,1750723840594,-500.0,0.00019299,2]
[367270718,1750723840603,-500.0,0.00019299,2]
[367270719,1750723840613,-500.0,0.00019299,2]
[367270720,1750723840622,-500.0,0.00019299,2]
[367270721,1750723840632,-313.29146492,0.00019299,2]
[367270722,1750723840642,-500.0,0.00019299,2]
[367270723,1750723840652,-500.0,0.00019299,2]
[367270724,1750723840662,-500.0,0.00019299,2]
[367270725,1750723840672,-652.11,0.00019299,2]
[367270726,1750723840682,-460.0,0.00019299,2]
[367270727,1750723840692,-500.0,0.00019299,2]
[367270728,1750723840702,-500.0,0.00019299,2]
[367270729,1750723840711,-500.0,0.00019299,2]
[367270730,1750723840720,-500.0,0.00019299,2]
[367270731,1750723840730,-500.0,0.00019299,2]